fUST/lending_fUST_20250311
["ID","MTS","AMOUNT","RATE_DAILY","PERIOD"]
[355845171,1741634709543,-321.404413,0.00051352,120]
[355845173,1741634709573,-321.404413,0.00051352,120]
[355845175,1741634709603,-321.404413,0.00051352,120]
[355845176,1741634709633,-321.404413,0.00051352,120]
[355845178,1741634709661,-321.404413,0.00051352,120]
[355845179,1741634709694,-321.404413,0.00051352,120]
[355845181,1741634709725,-321.40441,0.00051352,120]
[355845183,1741634709763,-655.45842754,0.00051385,91]
[355845184,1741634709794,-655.45842754,0.00051485,94]
[355845186,1741634709825,-1053.27,0.000515,30]
[355845187,1741634709858,-500.0,0.00051506,120]
[355845189,1741634709890,-500.0,0.00051506,120]
[355845190,1741634709921,-500.0,0.00051506,120]
[355845192,1741634709955,-500.0,0.00051506,120]
[355845194,1741634709987,-500.0,0.00051506,120]
[355845195,1741634710024,-500.0,0.00051506,120]
[355845197,1741634710057,-500.0,0.00051506,120]
[355845198,1741634710089,-285.11792428,0.00051506,120]
[355845200,1741634710120,-500.0,0.00051506,120]
[355845201,1741634710150,-500.0,0.00051506,120]
[355845203,1741634710186,-500.0,0.00051506,120]
[355845205,1741634710215,-500.0,0.00051506,120]
[355845206,1741634710246,-500.0,0.00051506,120]
[355845208,1741634710279,-538.84770012,0.00051506,120]
[355845210,1741634710313,-500.0,0.00051506,120]
[355845211,1741634710344,-528.73212342,0.00051506,120]
[355845213,1741634710374,-500.0,0.00051506,120]
[355845214,1741634710405,-514.67785108,0.00051506,120]
[355845216,1741634710437,-722.09,0.00051506,120]
[355845217,1741634710468,-500.0,0.00051506,120]
[355845219,1741634710498,-500.0,0.00051506,120]
[355845220,1741634710530,-542.09296649,0.00051506,120]
[355845222,1741634710563,-500.0,0.00051506,120]
[355845224,1741634710595,-500.0,0.00051506,120]
[355845225,1741634710626,-500.0,0.00051506,120]
[355845227,1741634710657,-500.0,0.00051506,120]
[355845228,1741634710688,-500.0,0.00051506,120]
[355845230,1741634710718,-500.0,0.00051506,120]
[355845231,1741634710748,-500.0,0.00051506,120]
[355845233,1741634710779,-500.0,0.00051506,120]
[355845235,1741634710808,-637.17,0.00051506,120]
[355845236,1741634710838,-500.0,0.00051506,120]
[355845238,1741634710867,-500.0,0.00051506,120]
[355845239,1741634710897,-966.69,0.00051506,120]
[355845241,1741634710927,-500.0,0.00051506,120]
[355845242,1741634710960,-500.0,0.00051506,120]
[355845244,1741634710991,-500.0,0.00051506,120]
[355845246,1741634711022,-500.0,0.00051506,120]
[355845247,1741634711055,-500.0,0.00051506,120]
[355845249,1741634711087,-500.0,0.00051506,120]
[355845250,1741634711119,-509.80530722,0.00051506,120]
[355845252,1741634711151,-514.20631559,0.00051506,120]
[355845253,1741634711185,-500.0,0.00051506,120]
[355845255,1741634711220,-263.17517903,0.00051506,120]
[355845256,1741634711251,-500.0,0.00051506,120]
[355845257,1741634711281,-500.0,0.00051506,120]
[355845258,1741634711504,-500.0,0.00051506,120]
[355845260,1741634711536,-930.98,0.00051506,120]
[355845261,1741634711568,-500.0,0.00051506,120]
[355845263,1741634711599,-500.0,0.00051506,120]
[355845264,1741634711630,-500.0,0.00051506,120]
[355845266,1741634711661,-500.0,0.00051506,120]
[355845267,1741634711693,-500.0,0.00051506,120]
[355845269,1741634711725,-500.0,0.00051506,120]
[355845271,1741634711756,-512.80596258,0.00051506,120]
[355845272,1741634711788,-500.0,0.00051506,120]
[355845274,1741634711819,-941.74,0.00051506,120]
[355845275,1741634711852,-500.0,0.00051506,120]
[355845277,1741634711887,-628.95,0.00051506,120]
[355845278,1741634711921,-500.0,0.00051506,120]
[355845280,1741634711956,-500.0,0.00051506,120]
[355845281,1741634711990,-500.0,0.00051506,120]
[355845283,1741634712024,-707.99,0.00051506,120]
[355845285,1741634712060,-590.09,0.00051506,120]
[355845286,1741634712094,-500.0,0.00051506,120]
[355845288,1741634712128,-508.21761161,0.00051506,120]
[355845289,1741634712161,-500.0,0.00051506,120]
[355845291,1741634712196,-666.63,0.00051506,120]
[355845292,1741634712232,-525.06115494,0.00051506,120]
[355845294,1741634712263,-524.02762439,0.00051506,120]
[355845296,1741634712294,-500.0,0.00051506,120]
[355845297,1741634712328,-500.0,0.00051506,120]
[355845299,1741634712360,-500.0,0.00051506,120]
[355845300,1741634712392,-500.0,0.00051506,120]
[355845302,1741634712423,-990.23,0.00051506,120]
[355845303,1741634712458,-1039.72,0.00051506,120]
[355845305,1741634712488,-500.0,0.00051506,120]
[355845307,1741634712518,-821.71,0.00051506,120]
[355845308,1741634712549,-500.0,0.00051506,120]
[355845310,1741634712579,-671.85,0.00051506,120]
[355845311,1741634712609,-500.0,0.00051506,120]
[355845313,1741634712639,-662.81,0.00051506,120]
[355845314,1741634712671,-500.0,0.00051506,120]
[355845316,1741634712707,-516.19555094,0.00051506,120]
[355845318,1741634712745,-1093.3,0.00051506,120]
[355845319,1741634712785,-500.0,0.00051506,120]
[355845321,1741634712826,-500.0,0.00051506,120]
[355845323,1741634712874,-500.0,0.00051506,120]
[355845324,1741634712911,-500.0,0.00051506,120]
[355845326,1741634712948,-500.0,0.00051506,120]
[355845328,1741634712990,-520.62,0.00051506,120]
[355845329,1741634713028,-723.93,0.00051506,120]
[355845331,1741634713062,-500.0,0.00051506,120]
[355845332,1741634713098,-500.0,0.00051506,120]
[355845334,1741634713138,-500.0,0.00051506,120]
[355845336,1741634713220,-500.0,0.00051506,120]
[355845337,1741634713267,-500.0,0.00051506,120]
[355845339,1741634713314,-500.0,0.00051506,120]
[355845340,1741634713347,-500.0,0.00051506,120]
[355845342,1741634713382,-545.41,0.00051506,120]
[355845343,1741634713415,-522.14782586,0.00051506,120]
[355845345,1741634713453,-520.33853602,0.00051506,120]
[355845347,1741634713484,-500.0,0.00051506,120]
[355845348,1741634713517,-500.0,0.00051506,120]
[355845350,1741634713548,-500.0,0.00051506,120]
[355845351,1741634713579,-510.7733618,0.00051506,120]
[355845353,1741634713610,-515.91246789,0.00051506,120]
[355845354,1741634713641,-567.29,0.00051506,120]
[355845356,1741634713672,-1069.2,0.00051506,120]
[355845358,1741634713706,-500.0,0.00051506,120]
[355845359,1741634713740,-569.12,0.00051506,120]
[355845361,1741634713787,-532.71610564,0.00051506,120]
[355845363,1741634713861,-500.0,0.00051506,120]
[355845364,1741634713895,-500.0,0.00051506,120]
[355845366,1741634713993,-500.0,0.00051506,120]
[355845367,1741634714030,-500.0,0.00051506,120]
[355845369,1741634714064,-251.63120339,0.00051506,120]
[355845371,1741634714098,-525.57,0.00051506,120]
[355845372,1741634714133,-296.97127209,0.00051506,120]
[355845374,1741634714165,-500.0,0.00051506,120]
[355845375,1741634714201,-500.0,0.00051506,120]
[355845377,1741634714233,-514.51487209,0.00051506,120]
[355845379,1741634714263,-500.0,0.00051506,120]
[355845380,1741634714294,-500.0,0.00051506,120]
[355845382,1741634714324,-500.0,0.00051506,120]
[355845383,1741634714353,-500.0,0.00051506,120]
[355845385,1741634714383,-500.0,0.00051506,120]
[355845386,1741634714416,-567.26,0.00051506,120]
[355845388,1741634714452,-1000.0,0.00051506,120]
[355845389,1741634714483,-500.0,0.00051506,120]
[355845391,1741634714512,-500.0,0.00051506,120]
[355845393,1741634714542,-500.0,0.00051506,120]
[355845394,1741634714571,-500.0,0.00051506,120]
[355845396,1741634714600,-500.0,0.00051506,120]
[355845397,1741634714631,-2049.14,0.00051506,120]
[355845399,1741634714663,-500.0,0.00051506,120]
[355845400,1741634714699,-500.0,0.00051506,120]
[355845402,1741634714730,-500.0,0.00051506,120]
[355845403,1741634714760,-500.0,0.00051506,120]
[355845405,1741634714791,-500.0,0.00051506,120]
[355845407,1741634714822,-500.0,0.00051506,120]
[355845408,1741634714852,-500.0,0.00051506,120]
[355845410,1741634714882,-634.97,0.00051506,120]
[355845411,1741634714912,-500.0,0.00051506,120]
[355845413,1741634714943,-884.18,0.00051506,120]
[355845414,1741634714975,-1733.86,0.00051506,120]
[355845416,1741634715006,-500.0,0.00051506,120]
[355845417,1741634715042,-500.0,0.00051506,120]
[355845419,1741634715075,-500.0,0.00051506,120]
[355845420,1741634715108,-1852.39,0.00051506,120]
[355845426,1741634715343,-500.0,0.00051506,120]
[355845427,1741634715379,-536.38,0.00051506,120]
[355845429,1741634715413,-318.82523892,0.00051506,120]
[355845430,1741634715447,-500.0,0.00051506,120]
[355845432,1741634715478,-537.55404197,0.00051506,120]
[355845434,1741634715508,-500.0,0.00051506,120]
[355845435,1741634715538,-2167.04,0.00051506,120]
[355845437,1741634715569,-500.0,0.00051506,120]
[355845438,1741634715600,-500.0,0.00051506,120]
[355845440,1741634715631,-510.58124435,0.00051506,120]
[355845441,1741634715662,-500.0,0.00051506,120]
[355845443,1741634715692,-1453.83,0.00051506,120]
[355845444,1741634715723,-523.06029986,0.00051506,120]
[355845446,1741634715753,-500.0,0.00051506,120]
[355845448,1741634715784,-500.0,0.00051506,120]
[355845449,1741634715815,-500.0,0.00051506,120]
[355845451,1741634715846,-500.0,0.00051506,120]
[355845452,1741634715878,-500.0,0.00051506,120]
[355845454,1741634715909,-500.0,0.00051506,120]
[355845455,1741634715942,-825.46,0.00051506,120]
[355845457,1741634715973,-500.0,0.00051506,120]
[355845459,1741634716006,-500.0,0.00051506,120]
[355845460,1741634716040,-500.0,0.00051506,120]
[355845462,1741634716073,-500.0,0.00051506,120]
[355845463,1741634716109,-1427.28,0.00051506,120]
[355845465,1741634716141,-500.0,0.00051506,120]
[355845466,1741634716171,-346.62259148,0.00051506,120]
[355845468,1741634716206,-500.0,0.00051506,120]
[355845470,1741634716238,-1000.0,0.00051506,120]
[355845471,1741634716270,-500.0,0.00051506,120]
[355845473,1741634716301,-500.0,0.00051506,120]
[355845474,1741634716333,-500.0,0.00051506,120]
[355845476,1741634716364,-500.0,0.00051506,120]
[355845477,1741634716394,-500.0,0.00051506,120]
[355845479,1741634716427,-500.0,0.00051506,120]
[355845481,1741634716462,-500.0,0.00051506,120]
[355845482,1741634716495,-593.95,0.00051506,120]
[355845484,1741634716528,-204.22355882,0.00051506,120]
[355845485,1741634716562,-500.0,0.00051506,120]
[355845487,1741634716595,-1223.04,0.00051506,120]
[355845489,1741634716626,-500.0,0.00051506,120]
[355845490,1741634716658,-507.90404709,0.00051506,120]
[355845492,1741634716691,-500.0,0.00051506,120]
[355845493,1741634716723,-500.0,0.00051506,120]
[355845495,1741634716755,-500.0,0.00051506,120]
[355845496,1741634716788,-500.0,0.00051506,120]
[355845498,1741634716820,-500.0,0.00051506,120]
[355845500,1741634716852,-1977.19,0.00051506,120]
[355845501,1741634716884,-1508.22,0.00051506,120]
[355845503,1741634716916,-500.0,0.00051506,120]
[355845504,1741634716952,-500.0,0.00051506,120]
[355845506,1741634716984,-500.0,0.00051506,120]
[355845508,1741634717017,-1095.78,0.00051506,120]
[355845509,1741634717048,-500.0,0.00051506,120]
[355845511,1741634717080,-1280.77,0.00051506,120]
[355845512,1741634717115,-500.0,0.00051506,120]
[355845514,1741634717151,-535.62467692,0.00051506,120]
[355845516,1741634717187,-500.0,0.00051506,120]
[355845517,1741634717221,-648.8,0.00051506,120]
[355845519,1741634717253,-500.0,0.00051506,120]
[355845521,1741634717304,-500.0,0.00051506,120]
[355845522,1741634717344,-500.0,0.00051506,120]
[355845524,1741634717387,-500.0,0.00051506,120]
[355845526,1741634717431,-491.48569361,0.00051506,120]
[355845528,1741634717473,-500.0,0.00051506,120]
[355845530,1741634717514,-500.0,0.00051506,120]
[355845531,1741634717556,-500.0,0.00051506,120]
[355845533,1741634717600,-1723.62,0.00051506,120]
[355845534,1741634717638,-500.0,0.00051506,120]
[355845535,1741634717679,-503.53398263,0.00051506,120]
[355845536,1741634717729,-500.0,0.00051506,120]
[355845537,1741634717772,-500.0,0.00051506,120]
[355845538,1741634717817,-625.71,0.00051506,120]
[355845539,1741634717852,-500.0,0.00051506,120]
[355845541,1741634717892,-500.0,0.00051506,120]
[355845542,1741634717935,-500.0,0.00051506,120]
[355845544,1741634717975,-500.0,0.00051506,120]
[355845546,1741634718017,-534.17589138,0.00051506,120]
[355845548,1741634718061,-500.0,0.00051506,120]
[355845549,1741634718104,-3946.5,0.00051506,120]
[355845551,1741634718147,-500.0,0.00051506,120]
[355845553,1741634718191,-500.0,0.00051506,120]
[355845554,1741634718234,-500.0,0.00051506,120]
[355845556,1741634718276,-500.0,0.00051506,120]
[355845558,1741634718318,-500.0,0.00051506,120]
[355845560,1741634718359,-1395.15,0.00051506,120]
[355845561,1741634718400,-500.0,0.00051506,120]
[355845563,1741634718446,-500.0,0.00051506,120]
[355845565,1741634718492,-500.0,0.00051506,120]
[355845566,1741634718537,-500.0,0.00051506,120]
[355845568,1741634718582,-500.0,0.00051506,120]
[355845570,1741634718623,-500.0,0.00051506,120]
[355845572,1741634718666,-500.0,0.00051506,120]
[355845573,1741634718714,-533.6543173,0.00051506,120]
[355845575,1741634718758,-155.25816636,0.00051506,120]
[355845577,1741634718806,-524.24071336,0.00051506,120]
[355845579,1741634718850,-500.0,0.00051506,120]
[355845580,1741634718894,-501.86,0.00051506,120]
[355845582,1741634718941,-500.0,0.00051506,120]
[355845584,1741634718987,-618.91,0.00051506,120]
[355845586,1741634719036,-696.15,0.00051506,120]
[355845587,1741634719080,-500.0,0.00051506,120]
[355845589,1741634719124,-500.0,0.00051506,120]
[355845591,1741634719166,-500.0,0.00051506,120]
[355845592,1741634719216,-797.66,0.00051506,120]
[355845594,1741634719260,-317.29122917,0.00051506,120]
[355845596,1741634719301,-2087.8,0.00051506,120]
[355845598,1741634719342,-500.0,0.00051506,120]
[355845599,1741634719382,-508.0,0.00051506,120]
[355845601,1741634719424,-500.0,0.00051506,120]
[355845603,1741634719465,-500.0,0.00051506,120]
[355845604,1741634719507,-916.87,0.00051506,120]
[355845606,1741634719546,-5780.6,0.00051506,120]
[355845608,1741634719585,-500.0,0.00051506,120]
[355845609,1741634719626,-500.0,0.00051506,120]
[355845611,1741634719665,-907.16,0.00051506,120]
[355845613,1741634719706,-500.0,0.00051506,120]
[355845620,1741634720074,-500.0,0.00051506,120]
[355845621,1741634720108,-541.80673851,0.00051506,120]
[355845623,1741634720142,-500.0,0.00051506,120]
[355845625,1741634720176,-500.0,0.00051506,120]
[355845626,1741634720214,-964.32,0.00051506,120]
[355845628,1741634720246,-582.49098785,0.00051506,120]
[355845629,1741634720278,-500.0,0.00051506,120]
[355845631,1741634720310,-500.0,0.00051506,120]
[355845632,1741634720342,-500.0,0.00051506,120]
[355845634,1741634720374,-2093.35,0.00051506,120]
[355845636,1741634720404,-500.0,0.00051506,120]
[355845637,1741634720438,-500.0,0.00051506,120]
[355845639,1741634720472,-500.0,0.00051506,120]
[355845640,1741634720506,-529.09716334,0.00051506,120]
[355845642,1741634720538,-500.0,0.00051506,120]
[355845643,1741634720571,-500.0,0.00051506,120]
[355845645,1741634720607,-547.54604567,0.00051506,120]
[355845647,1741634720641,-533.95431626,0.00051506,120]
[355845648,1741634720678,-943.37,0.00051506,120]
[355845650,1741634720715,-500.0,0.00051506,120]
[355845651,1741634720748,-500.0,0.00051506,120]
[355845653,1741634720781,-2796.61,0.00051506,120]
[355845654,1741634720815,-500.0,0.00051506,120]
[355845656,1741634720849,-829.49,0.00051506,120]
[355845657,1741634720885,-283.49983089,0.00051506,120]
[355845659,1741634720918,-1140.9,0.00051506,120]
[355845661,1741634720955,-500.0,0.00051506,120]
[355845662,1741634720992,-500.0,0.00051506,120]
[355845664,1741634721033,-500.0,0.00051506,120]
[355845666,1741634721074,-500.0,0.00051506,120]
[355845667,1741634721115,-500.0,0.00051506,120]
[355845669,1741634721151,-500.0,0.00051506,120]
[355845670,1741634721191,-500.0,0.00051506,120]
[355845672,1741634721229,-580.77,0.00051506,120]
[355845673,1741634721264,-549.75371288,0.00051506,120]
[355845675,1741634721299,-500.0,0.00051506,120]
[355845677,1741634721335,-500.0,0.00051506,120]
[355845678,1741634721371,-500.0,0.00051506,120]
[355845680,1741634721403,-609.32102718,0.00051506,30]
[355845681,1741634721442,-1287.13,0.00051506,120]
[355845683,1741634721474,-500.0,0.00051506,120]
[355845684,1741634721508,-598.27,0.00051506,120]
[355845686,1741634721541,-517.21,0.00051506,120]
[355845687,1741634721573,-500.0,0.00051506,120]
[355845689,1741634721606,-500.0,0.00051506,120]
[355845691,1741634721637,-500.0,0.00051506,120]
[355845692,1741634721669,-500.0,0.00051506,120]
[355845694,1741634721703,-1667.02,0.00051506,120]
[355845695,1741634721735,-210.75047748,0.00051506,120]
[355845697,1741634721768,-1230.06,0.00051506,120]
[355845698,1741634721802,-500.0,0.00051506,120]
[355845700,1741634721837,-685.63,0.00051506,120]
[355845701,1741634721869,-529.86,0.00051506,120]
[355845703,1741634721902,-542.90298564,0.00051506,120]
[355845705,1741634721939,-1714.18,0.00051506,120]
[355845706,1741634721973,-2510.41,0.00051506,120]
[355845708,1741634722008,-500.0,0.00051506,120]
[355845709,1741634722045,-500.0,0.00051506,120]
[355845711,1741634722080,-520.23,0.00051506,120]
[355845712,1741634722119,-500.0,0.00051506,120]
[355845714,1741634722154,-3040.06,0.00051506,120]
[355845716,1741634722188,-562.28,0.00051506,120]
[355845717,1741634722222,-636.21089963,0.00051506,120]
[355845719,1741634722257,-500.0,0.00051506,120]
[355845720,1741634722294,-828.78,0.00051506,120]
[355845722,1741634722329,-3111.15,0.00051506,120]
[355845723,1741634722364,-531.25426541,0.00051506,120]
[355845725,1741634722404,-500.0,0.00051506,120]
[355845727,1741634722439,-1558.42,0.00051506,120]
[355845728,1741634722474,-500.0,0.00051506,120]
[355845730,1741634722507,-500.0,0.00051506,120]
[355845731,1741634722544,-2044.08,0.00051506,120]
[355845733,1741634722580,-1349.72,0.00051506,120]
[355845734,1741634722615,-500.0,0.00051506,120]
[355845736,1741634722650,-533.62941228,0.00051506,120]
[355845738,1741634722683,-500.0,0.00051506,120]
[355845739,1741634722723,-505.0,0.00051506,120]
[355845741,1741634722756,-500.0,0.00051506,120]
[355845742,1741634722791,-500.0,0.00051506,120]
[355845744,1741634722822,-500.0,0.00051506,120]
[355845745,1741634722856,-1531.21,0.00051506,120]
[355845747,1741634722888,-500.0,0.00051506,120]
[355845749,1741634722921,-948.59,0.00051506,120]
[355845750,1741634722958,-634.94,0.00051506,120]
[355845752,1741634722990,-500.0,0.00051506,120]
[355845753,1741634723031,-361.76359082,0.00051506,30]
[355845755,1741634723068,-1529.78,0.00051506,120]
[355845756,1741634723107,-500.0,0.00051506,120]
[355845758,1741634723143,-500.0,0.00051506,120]
[355845759,1741634723178,-610.48,0.00051506,120]
[355845761,1741634723217,-500.0,0.00051506,120]
[355845763,1741634723251,-4845.92,0.00051506,120]
[355845764,1741634723287,-500.0,0.00051506,120]
[355845766,1741634723323,-637.0,0.00051506,120]
[355845767,1741634723358,-500.0,0.00051506,120]
[355845769,1741634723393,-996.35,0.00051506,120]
[355845771,1741634723425,-506.05560731,0.00051506,120]
[355845772,1741634723466,-2013.49,0.00051506,120]
[355845774,1741634723501,-500.24020839,0.00051506,120]
[355845775,1741634723536,-500.0,0.00051506,120]
[355845780,1741634723794,-932.97,0.00051506,120]
[355845782,1741634723833,-4678.54,0.00051506,120]
[355845783,1741634723869,-500.0,0.00051506,120]
[355845785,1741634723908,-535.9365758,0.00051506,120]
[355845786,1741634723952,-546.17915473,0.00051506,45]
[355845788,1741634723988,-530.75227082,0.00051506,120]
[355845790,1741634724027,-5617.34,0.00051506,120]
[355845791,1741634724065,-500.0,0.00051506,120]
[355845793,1741634724135,-500.0,0.00051506,120]
[355845795,1741634724206,-3648.52,0.00051506,120]
[355845797,1741634724272,-500.0,0.00051506,120]
[355845798,1741634724337,-760.85,0.00051506,120]
[355845799,1741634724398,-1071.61,0.00051506,120]
[355845800,1741634724459,-500.0,0.00051506,120]
[355845801,1741634724520,-500.0,0.00051506,120]
[355845803,1741634724583,-500.0,0.00051506,120]
[355845805,1741634724646,-500.0,0.00051506,120]
[355845807,1741634724708,-500.0,0.00051506,120]
[355845809,1741634724768,-500.0,0.00051506,120]
[355845811,1741634724827,-500.0,0.00051506,120]
[355845813,1741634724887,-1343.82,0.00051506,120]
[355845815,1741634724949,-526.14280497,0.00051506,120]
[355845817,1741634725008,-500.0,0.00051506,120]
[355845819,1741634725064,-541.9125945,0.00051506,120]
[355845821,1741634725126,-1206.47,0.00051506,120]
[355845823,1741634725187,-898.89,0.00051506,120]
[355845825,1741634725256,-500.0,0.00051506,120]
[355845827,1741634725318,-500.0,0.00051506,120]
[355845829,1741634725371,-500.0,0.00051506,120]
[355845831,1741634725432,-3411.55,0.00051506,120]
[355845833,1741634725499,-12509.02,0.00051506,120]
[355845835,1741634725565,-431.86424123,0.00051506,120]
[355845837,1741634725629,-705.81,0.00051506,120]
[355845839,1741634725694,-710.74,0.00051506,120]
[355845840,1741634725759,-435.32005753,0.00051506,120]
[355845843,1741634725826,-500.0,0.00051506,120]
[355845845,1741634725892,-500.0,0.00051506,120]
[355845847,1741634725958,-500.0,0.00051506,120]
[355845848,1741634726024,-500.0,0.00051506,120]
[355845851,1741634726091,-500.0,0.00051506,120]
[355845852,1741634726158,-2771.86,0.00051506,120]
[355845855,1741634726226,-500.0,0.00051506,120]
[355845856,1741634726289,-500.0,0.00051506,120]
[355845859,1741634726356,-500.0,0.00051506,120]
[355845861,1741634726420,-202.34975504,0.00051506,120]
[355845863,1741634726487,-5657.78,0.00051506,120]
[355845865,1741634726554,-500.0,0.00051506,120]
[355845867,1741634726619,-796.29,0.00051506,120]
[355845868,1741634726683,-500.0,0.00051506,120]
[355845871,1741634726756,-12247.16,0.00051506,120]
[355845873,1741634726825,-5551.46,0.00051506,120]
[355845875,1741634726895,-500.0,0.00051506,120]
[355845877,1741634726966,-2183.17,0.00051506,120]
[355845879,1741634727031,-562.13659096,0.00051506,120]
[355845881,1741634727093,-1240.41,0.00051506,120]
[355845883,1741634727163,-1508.14,0.00051506,120]
[355845885,1741634727229,-500.0,0.00051506,120]
[355845887,1741634727298,-505.42,0.00051506,120]
[355845889,1741634727366,-500.0,0.00051506,120]
[355845890,1741634727436,-500.0,0.00051506,120]
[355845893,1741634727506,-500.0,0.00051506,120]
[355845895,1741634727575,-8620.18,0.00051506,120]
[355845897,1741634727639,-190.83430453,0.00051506,120]
[355845899,1741634727703,-500.0,0.00051506,120]
[355845901,1741634727766,-500.0,0.00051506,120]
[355845903,1741634727832,-500.0,0.00051506,120]
[355845905,1741634727900,-500.0,0.00051506,120]
[355845907,1741634727968,-500.0,0.00051506,120]
[355845909,1741634728038,-500.0,0.00051506,120]
[355845911,1741634728105,-500.0,0.00051506,120]
[355845913,1741634728171,-1144.04,0.00051506,120]
[355845915,1741634728233,-500.0,0.00051506,120]
[355845917,1741634728300,-500.0,0.00051506,120]
[355845919,1741634728361,-523.4103824,0.00051506,120]
[355845921,1741634728427,-500.0,0.00051506,120]
[355845923,1741634728491,-500.0,0.00051506,120]
[355845925,1741634728558,-500.0,0.00051506,120]
[355845927,1741634728619,-500.0,0.00051506,120]
[355845929,1741634728685,-533.28,0.00051506,120]
[355845931,1741634728746,-500.0,0.00051506,120]
[355845933,1741634728809,-1231.57,0.00051506,120]
[355845935,1741634728872,-500.0,0.00051506,120]
[355845937,1741634728935,-500.0,0.00051506,120]
[355845939,1741634729005,-500.0,0.00051506,120]
[355845941,1741634729070,-500.0,0.00051506,120]
[355845943,1741634729138,-500.0,0.00051506,120]
[355845945,1741634729207,-500.0,0.00051506,120]
[355845947,1741634729272,-562.15,0.00051506,120]
[355845949,1741634729338,-500.0,0.00051506,120]
[355845951,1741634729405,-500.0,0.00051506,120]
[355845953,1741634729471,-500.0,0.00051506,120]
[355845955,1741634729537,-3093.79,0.00051506,120]
[355845957,1741634729603,-500.0,0.00051506,120]
[355845959,1741634729670,-865.06,0.00051506,120]
[355845961,1741634729736,-1650.67,0.00051506,120]
[355845963,1741634729799,-500.0,0.00051506,120]
[355845965,1741634729863,-200.0,0.00051506,30]
[355845967,1741634729927,-655.45842754,0.00051585,93]
[355845969,1741634729990,-7998.11,0.000516,30]
[355845971,1741634730063,-655.45842754,0.00051685,95]
[355845973,1741634730132,-31687.44208105,0.00051693,30]
[355845975,1741634730209,-10358.8693535,0.00051693,30]
[355845977,1741634730274,-10972.83010031,0.0005178,61]
[355845978,1741634730341,-500.0,0.0005178,120]
[355845984,1741634730608,-500.0,0.0005178,120]
[355845986,1741634730662,-500.0,0.0005178,120]
[355845988,1741634730716,-500.0,0.0005178,120]
[355845990,1741634730773,-500.0,0.0005178,120]
[355845992,1741634730831,-500.0,0.0005178,120]
[355845994,1741634730890,-524.70856255,0.0005178,120]
[355845997,1741634730954,-500.0,0.0005178,120]
[355845999,1741634731017,-511.82134341,0.0005178,120]
[355846001,1741634731082,-500.0,0.0005178,120]
[355846003,1741634731143,-500.0,0.0005178,120]
[355846005,1741634731205,-500.0,0.0005178,120]
[355846006,1741634731269,-537.88528813,0.0005178,120]
[355846008,1741634731327,-500.0,0.0005178,120]
[355846009,1741634731383,-722.09,0.0005178,120]
[355846010,1741634731439,-500.0,0.0005178,120]
[355846011,1741634731500,-500.0,0.0005178,120]
[355846012,1741634731557,-500.0,0.0005178,120]
[355846013,1741634731610,-252.82340272,0.0005178,120]
[355846015,1741634731666,-500.0,0.0005178,120]